fUSD/lending_fUSD_20250124
["ID","MTS","AMOUNT","RATE_DAILY","PERIOD"]
[350205632,1737688261662,-151.0,0.00019,2]
[350205633,1737688261681,-151.0,0.00019,2]
[350205634,1737688261691,-151.0,0.00019,2]
[350205635,1737688261699,-484.863325,0.00019,2]
[350205636,1737688261709,-484.863325,0.00019,2]
[350205637,1737688261718,-168.825534,0.00019,2]
[350205638,1737688261728,-168.825534,0.00019,2]
[350205639,1737688261738,-151.0,0.00019,2]
[350205640,1737688261747,-191.794736,0.00019,2]
[350205641,1737688261757,-191.794736,0.00019,2]
[350205642,1737688261880,-418.218264,0.00019,2]
[350205643,1737688261889,-418.218264,0.00019,2]
[350205644,1737688261900,-319.831072,0.00019,2]
[350205645,1737688261909,-319.831072,0.00019,2]
[350205646,1737688261919,-151.0,0.00019,2]
[350205647,1737688261928,-151.0,0.00019,2]
[350205648,1737688261937,-151.0,0.00019,2]
[350205649,1737688261947,-252.788304,0.00019,2]
[350205650,1737688261956,-1737.527485,0.00019,2]
[350205651,1737688261965,-1737.527485,0.00019,2]
[350205652,1737688261974,-1737.527485,0.00019,2]
[350205653,1737688261983,-1737.527485,0.00019,2]
[350205654,1737688261992,-151.0,0.00019,2]
[350205655,1737688262001,-151.0,0.00019,2]
[350205656,1737688262011,-151.0,0.00019,2]
[350205657,1737688262020,-151.0,0.00019,2]
[350205658,1737688262030,-196.035166,0.00019,2]
[350205659,1737688262039,-196.035166,0.00019,2]
[350205660,1737688262049,-196.035166,0.00019,2]
[350205661,1737688262058,-196.035166,0.00019,2]
[350205662,1737688262068,-151.0,0.00019,2]
[350205663,1737688262077,-151.0,0.00019,2]
[350205664,1737688262086,-151.0,0.00019,2]
[350205665,1737688262096,-215.056566,0.00019,2]
[350205666,1737688262105,-733.220256,0.00019,2]
[350205667,1737688262114,-733.220256,0.00019,2]
[350205668,1737688262123,-733.220256,0.00019,2]
[350205669,1737688262132,-733.220256,0.00019,2]
[350205670,1737688262143,-282.229996,0.00019,2]
[350205671,1737688262153,-282.229996,0.00019,2]
[350205672,1737688262162,-282.229996,0.00019,2]
[350205673,1737688262172,-282.229996,0.00019,2]
[350205674,1737688262181,-152.708514,0.00019,2]
[350205675,1737688262190,-151.0,0.00019,2]
[350205676,1737688262200,-151.0,0.00019,2]
[350205677,1737688262209,-151.0,0.00019,2]
[350205678,1737688262219,-151.0,0.00019,2]
[350205679,1737688262228,-281.7022,0.00019,2]
[350205680,1737688262238,-281.7022,0.00019,2]
[350205681,1737688262247,-281.7022,0.00019,2]
[350205682,1737688262256,-281.7022,0.00019,2]
[350205683,1737688262266,-151.0,0.00019,2]
[350205684,1737688262275,-151.0,0.00019,2]
[350205685,1737688262284,-151.0,0.00019,2]
[350205686,1737688262292,-166.315229,0.00019,2]
[350205687,1737688262302,-514.455156,0.00019,2]
[350205688,1737688262311,-514.455156,0.00019,2]
[350205689,1737688262320,-514.455156,0.00019,2]
[350205690,1737688262332,-514.455156,0.00019,2]
[350205691,1737688262342,-234.857282,0.00019,2]
[350205692,1737688262351,-234.857282,0.00019,2]
[350205693,1737688262360,-151.0,0.00019,2]
[350205694,1737688262369,-151.0,0.00019,2]
[350205695,1737688262378,-151.0,0.00019,2]
[350205696,1737688262387,-151.0,0.00019,2]
[350205697,1737688262398,-151.0,0.00019,2]
[350205698,1737688262409,-151.0,0.00019,2]
[350205699,1737688262419,-151.0,0.00019,2]
[350205700,1737688262429,-151.0,0.00019,2]
[350205701,1737688262438,-167.300744,0.00019,2]
[350205702,1737688262448,-167.300744,0.00019,2]
[350205703,1737688262457,-151.0,0.00019,2]
[350205704,1737688262466,-151.0,0.00019,2]
[350205705,1737688262475,-167.300744,0.00019,2]
[350205706,1737688262487,-167.300744,0.00019,2]
[350205707,1737688262496,-288.712943,0.00019,2]
[350205708,1737688262505,-151.0,0.00019,2]
[350205709,1737688262514,-292.401606,0.00019,2]
[350205710,1737688262523,-151.0,0.00019,2]
[350205711,1737688262532,-259.3296,0.00019,2]
[350205712,1737688262541,-259.3296,0.00019,2]
[350205713,1737688262550,-259.3296,0.00019,2]
[350205714,1737688262559,-259.3296,0.00019,2]
[350205715,1737688262568,-151.0,0.00019,2]
[350205716,1737688262578,-151.0,0.00019,2]
[350205717,1737688262588,-363.263715,0.00019,2]
[350205718,1737688262597,-363.263715,0.00019,2]
[350205719,1737688262607,-363.263715,0.00019,2]
[350205720,1737688262617,-363.263715,0.00019,2]
[350205721,1737688262626,-151.0,0.00019,2]
[350205722,1737688262636,-151.0,0.00019,2]
[350205723,1737688262645,-151.0,0.00019,2]
[350205724,1737688262655,-151.0,0.00019,2]
[350205725,1737688262665,-151.0,0.00019,2]
[350205726,1737688262675,-151.0,0.00019,2]
[350205727,1737688262684,-458.86797,0.00019,2]
[350205728,1737688262694,-458.86797,0.00019,2]
[350205729,1737688262703,-458.86797,0.00019,2]
[350205730,1737688262713,-458.86797,0.00019,2]
[350205731,1737688262723,-500.161188,0.00019,2]
[350205732,1737688262732,-568.74479691,0.00019003,2]
[350205733,1737688262742,-154.9465296,0.00019012,2]
[350205734,1737688262752,-150.0,0.00019014,2]
[350205735,1737688262761,-1000.0,0.0001902,2]
[350205736,1737688262771,-500.0,0.00019022,2]
[350205737,1737688262780,-500.0,0.00019022,2]
[350205738,1737688262790,-500.0,0.00019022,2]
[350205739,1737688262801,-500.0,0.00019022,2]
[350205740,1737688262810,-1070.32,0.00019022,2]
[350205741,1737688262819,-500.0,0.00019022,2]
[350205742,1737688262829,-500.0,0.00019022,2]
[350205743,1737688262839,-500.0,0.00019022,2]
[350205744,1737688262848,-710.49,0.00019022,2]
[350205745,1737688262857,-795.53,0.00019022,2]
[350205746,1737688262867,-500.0,0.00019022,2]
[350205747,1737688262877,-500.0,0.00019022,2]
[350205748,1737688262887,-500.0,0.00019022,2]
[350205749,1737688262897,-500.0,0.00019022,2]
[350205750,1737688262907,-1124.99,0.00019022,2]
[350205751,1737688262916,-749.76,0.00019022,2]
[350205752,1737688262927,-500.0,0.00019022,2]
[350205753,1737688262936,-455.18,0.00019022,2]
[350205754,1737688262945,-358.84,0.00019022,2]
[350205755,1737688262956,-732.75,0.00019022,2]
[350205756,1737688262966,-500.0,0.00019022,2]
[350205757,1737688262978,-500.0,0.00019022,2]
[350205758,1737688262988,-500.0,0.00019022,2]
[350205759,1737688263000,-416.017879,0.00019022,2]
[350205760,1737688263012,-152.62,0.00019022,2]
[350205761,1737688263021,-500.0,0.00019022,2]
[350205762,1737688263031,-707.08,0.00019022,2]
[350205763,1737688263040,-158.41227,0.00019022,2]
[350205764,1737688263050,-500.0,0.00019022,2]
[350205765,1737688263060,-500.0,0.00019022,2]
[350205766,1737688263070,-950.55,0.00019022,2]
[350205767,1737688263081,-500.0,0.00019022,2]
[350205768,1737688263091,-500.0,0.00019022,2]
[350205769,1737688263101,-500.0,0.00019022,2]
[350205770,1737688263112,-154.9465296,0.00019055,2]
[350205771,1737688263122,-150.0,0.00019071,2]
[350205772,1737688263133,-729.04,0.00019074,2]
[350205773,1737688263144,-234.09545682,0.00019084,2]
[350205774,1737688263158,-150.0,0.00019085,2]
[350205775,1737688263168,-151.0,0.00019088,2]
[350205776,1737688263178,-154.9465296,0.00019097,2]
[350205777,1737688263188,-5064.33869516,0.0001911,2]
[350205778,1737688263198,-500.0,0.00019136,2]
[350205779,1737688263207,-154.9465296,0.00019139,2]
[350205780,1737688263217,-568.74479691,0.00019141,2]
[350205781,1737688263227,-11893.3,0.00019151,2]
[350205782,1737688263237,-150.0,0.00019156,2]
[350205783,1737688263247,-500.0,0.00019164,2]
[350205784,1737688263256,-800.0,0.00019164,2]
[350205785,1737688263266,-500.0,0.00019174,2]
[350205786,1737688263275,-644.67,0.00019174,2]
[350205787,1737688263284,-1109.59,0.00019174,2]
[350205788,1737688263294,-805.84,0.00019174,2]
[350205789,1737688263304,-500.0,0.00019174,2]
[350205790,1737688263313,-500.0,0.00019174,2]
[350205791,1737688263330,-990.45,0.00019174,2]
[350205792,1737688263340,-1432.21,0.00019174,2]
[350205793,1737688263350,-1033.96,0.00019174,2]
[350205794,1737688263359,-500.0,0.00019174,2]
[350205795,1737688263371,-500.0,0.00019174,2]
[350205796,1737688263381,-1074.99,0.00019174,2]
[350205797,1737688263391,-634.28,0.00019174,2]
[350205798,1737688263403,-500.0,0.00019174,2]
[350205799,1737688263413,-500.0,0.00019174,2]
[350205800,1737688263424,-500.0,0.00019174,2]
[350205801,1737688263434,-740.44,0.00019174,2]
[350205802,1737688263444,-500.0,0.00019174,2]
[350205803,1737688263454,-604.34,0.00019174,2]
[350205804,1737688263463,-764.8,0.00019174,2]
[350205805,1737688263473,-959.6,0.00019174,2]
[350205806,1737688263483,-500.0,0.00019174,2]
[350205807,1737688263492,-1345.49,0.00019174,2]
[350205808,1737688263502,-895.76,0.00019174,2]
[350205809,1737688263512,-500.0,0.00019174,2]
[350205810,1737688263521,-500.0,0.00019174,2]
[350205811,1737688263531,-150.86,0.00019174,2]
[350205812,1737688263541,-877.77,0.00019174,2]
[350205813,1737688263552,-1107.33,0.00019174,2]
[350205814,1737688263561,-500.0,0.00019174,2]
[350205815,1737688263570,-500.0,0.00019174,2]
[350205816,1737688263580,-346.9,0.00019175,2]
[350205817,1737688263589,-608.85,0.00019175,2]
[350205818,1737688263599,-224.74,0.00019175,2]
[350205819,1737688263610,-488.8,0.00019175,2]
[350205820,1737688263623,-455.79,0.00019175,2]
[350205821,1737688263633,-500.0,0.00019175,2]
[350205822,1737688263643,-500.0,0.00019175,2]
[350205823,1737688263656,-500.0,0.00019176,2]
[350205824,1737688263667,-500.0,0.00019176,2]
[350205825,1737688263677,-437.9,0.00019176,2]
[350205826,1737688263687,-500.0,0.00019176,2]
[350205827,1737688263698,-500.0,0.00019176,2]
[350205828,1737688263708,-500.0,0.00019176,2]
[350205829,1737688263717,-500.0,0.00019176,2]
[350205830,1737688263727,-500.0,0.00019176,2]
[350205831,1737688263737,-500.0,0.00019176,2]
[350205832,1737688263747,-500.0,0.00019176,2]
[350205833,1737688263756,-500.0,0.00019176,2]
[350205834,1737688263765,-1269.9,0.00019176,2]
[350205835,1737688263775,-1974.49,0.00019176,2]
[350205836,1737688263785,-500.0,0.00019176,2]
[350205837,1737688263795,-600.35,0.00019176,2]
[350205838,1737688263805,-500.0,0.00019176,2]
[350205839,1737688263815,-500.0,0.00019176,2]
[350205840,1737688263825,-500.0,0.00019176,2]
[350205841,1737688263835,-542.23,0.00019176,2]
[350205842,1737688263845,-150.95422976,0.00019178,2]
[350205843,1737688263855,-4000.0,0.00019178,2]
[350205844,1737688263865,-154.9465296,0.00019182,4]
[350205845,1737688263875,-150.0,0.00019182,4]
[350205846,1737688263886,-372.65,0.00019189,2]
[350205847,1737688263895,-8683.00362969,0.00019193,2]
[350205848,1737688263908,-150.0,0.00019206,4]
[350205849,1737688263918,-317.52,0.00019215,2]
[350205850,1737688263928,-1000.0,0.00019221,2]
[350205851,1737688263938,-154.9465296,0.00019224,4]
[350205852,1737688263948,-150.0,0.00019227,4]
[350205853,1737688263960,-234.09545682,0.00019242,2]
[350205854,1737688263969,-154.9465296,0.00019267,4]
[350205855,1737688263978,-500.0,0.00019273,2]
[350205856,1737688263989,-568.74479691,0.00019279,2]
[350205857,1737688263998,-500.0,0.00019296,2]
[350205858,1737688264009,-550.22,0.00019296,2]
[350205859,1737688264018,-500.0,0.00019296,2]
[350205860,1737688264028,-1070.32,0.00019296,2]
[350205861,1737688264037,-500.0,0.00019296,2]
[350205862,1737688264047,-500.0,0.00019296,2]
[350205863,1737688264056,-500.0,0.00019296,2]
[350205864,1737688264066,-710.49,0.00019296,2]
[350205865,1737688264076,-795.53,0.00019296,2]
[350205866,1737688264086,-500.0,0.00019296,2]
[350205867,1737688264095,-500.0,0.00019296,2]
[350205868,1737688264105,-500.0,0.00019296,2]
[350205869,1737688264115,-500.0,0.00019296,2]
[350205870,1737688264124,-1124.99,0.00019296,2]
[350205871,1737688264134,-749.76,0.00019296,2]
[350205872,1737688264143,-500.0,0.00019296,2]
[350205873,1737688264156,-732.75,0.00019296,2]
[350205874,1737688264166,-327.26,0.00019296,2]
[350205875,1737688264175,-500.0,0.00019296,2]
[350205876,1737688264301,-500.0,0.00019296,2]
[350205877,1737688264311,-416.017879,0.00019296,2]
[350205878,1737688264321,-500.0,0.00019296,2]
[350205879,1737688264334,-707.08,0.00019296,2]
[350205880,1737688264343,-500.0,0.00019296,2]
[350205881,1737688264353,-500.0,0.00019296,2]
[350205882,1737688264363,-950.55,0.00019296,2]
[350205883,1737688264372,-500.0,0.00019296,2]
[350205884,1737688264382,-500.0,0.00019296,2]
[350205885,1737688264392,-459.44,0.00019296,2]
[350205886,1737688264405,-150.0,0.00019298,4]
[350205887,1737688264415,-150.0,0.00019299,2]
[350205888,1737688264424,-150.0,0.000193,2]
[350205889,1737688264434,-154.9465296,0.00019309,4]
[350205890,1737688264444,-3185.60830584,0.00019335,2]
[350205891,1737688264453,-150.0,0.00019342,4]
[350205892,1737688264463,-260.61,0.00019345,2]
[350205893,1737688264472,-154.9465296,0.00019352,4]
[350205894,1737688264482,-5800.0,0.00019358,2]
[350205895,1737688264491,-5800.0,0.00019366,2]
[350205896,1737688264501,-150.0,0.00019369,4]
[350205897,1737688264510,-5800.0,0.00019375,2]
[350205898,1737688264520,-166.05349098,0.00019375,2]
[350205899,1737688264538,-1109.97733375,0.00019375,2]
[350205900,1737688264550,-725.00574762,0.00019375,2]
[350205901,1737688264561,-565.134902,0.00019375,2]
[350205905,1737689290826,200.0,0.0001,14]
[350205931,1737689431909,-167.61,0.00012329,2]
[350205932,1737689431919,-110.45409137,0.00015,2]
[350205933,1737689432072,-439.54590863,0.00015,2]
[350205934,1737689432082,-675.27,0.00015338,2]
[350205935,1737689432091,-1547.67948953,0.00016,2]
[350205936,1737689432100,-462.25,0.0001637,2]
[350205937,1737689432109,-162.0,0.00016379,2]
[350205938,1737689432119,-353178.72940028,0.0001638,2]
[350205939,1737689432131,-57287.16645109,0.0001638,2]
[350205940,1737689432140,-176.72055884,0.0001638,2]
[350205941,1737689432150,-500.0,0.00016438,2]
[350205942,1737689432159,-500.0,0.00016438,2]
[350205943,1737689432169,-802.74,0.00016438,2]
[350205944,1737689432178,-500.0,0.00016438,2]
[350205945,1737689432187,-500.0,0.00016438,2]
[350205946,1737689432196,-500.0,0.00016438,2]
[350205947,1737689432206,-646.54,0.00016438,2]
[350205948,1737689432215,-500.0,0.00016438,2]
[350205949,1737689432224,-500.0,0.00016438,2]
[350205950,1737689432233,-500.0,0.00016438,2]
[350205951,1737689432242,-500.0,0.00016438,2]
[350205952,1737689432254,-500.0,0.00016438,2]
[350205953,1737689432263,-790.11,0.00016438,2]
[350205954,1737689432272,-715.81,0.00016438,2]
[350205955,1737689432281,-500.0,0.00016438,2]
[350205956,1737689432291,-500.0,0.00016438,2]
[350205957,1737689432300,-523.49641553,0.00016438,2]
[350205958,1737689432309,-1205.98,0.00016438,2]
[350205959,1737689432318,-205.59911257,0.00016438,2]
[350205960,1737689432327,-500.0,0.00016438,2]
[350205961,1737689432336,-500.0,0.00016438,2]
[350205962,1737689432346,-500.0,0.00016438,2]
[350205963,1737689432356,-500.0,0.00016438,2]
[350205964,1737689432365,-500.0,0.00016438,2]
[350205965,1737689432376,-500.0,0.00016438,2]
[350205966,1737689432385,-719.0,0.00016438,2]
[350205967,1737689432395,-666.5,0.00016438,2]
[350205968,1737689432404,-500.0,0.00016438,2]
[350205969,1737689432413,-500.0,0.00016438,2]
[350205970,1737689432423,-603.8620873,0.00016438,2]
[350205971,1737689432432,-1075.65,0.00016438,2]
[350205972,1737689432441,-500.0,0.00016438,2]
[350205973,1737689432450,-500.0,0.00016438,2]
[350205974,1737689432460,-500.0,0.00016438,2]
[350205975,1737689432469,-500.0,0.00016438,2]
[350205976,1737689432479,-507.8781207,0.00016438,2]
[350205977,1737689432489,-341.85578891,0.00016438,2]
[350205978,1737689432498,-299.58945154,0.00016438,2]
[350205979,1737689432508,-500.0,0.00016438,2]
[350205980,1737689432517,-500.0,0.00016438,2]
[350205981,1737689432526,-500.0,0.00016438,2]
[350205982,1737689432536,-500.0,0.00016438,2]
[350205983,1737689432545,-190.51,0.00016698,2]
[350205984,1737689432555,-500.0,0.00016712,2]
[350205985,1737689432564,-500.0,0.00016712,2]
[350205986,1737689432573,-802.74,0.00016712,2]
[350205987,1737689432583,-500.0,0.00016712,2]
[350205988,1737689432592,-500.0,0.00016712,2]
[350205989,1737689432602,-500.0,0.00016712,2]
[350205990,1737689432611,-646.54,0.00016712,2]
[350205991,1737689432620,-500.0,0.00016712,2]
[350205992,1737689432635,-500.0,0.00016712,2]
[350205993,1737689432644,-500.0,0.00016712,2]
[350205994,1737689432654,-500.0,0.00016712,2]
[350205995,1737689432664,-500.0,0.00016712,2]
[350205996,1737689432673,-790.11,0.00016712,2]
[350205997,1737689432683,-715.81,0.00016712,2]
[350205998,1737689432693,-500.0,0.00016712,2]
[350205999,1737689432704,-500.0,0.00016712,2]
[350206000,1737689432719,-1205.98,0.00016712,2]
[350206001,1737689432729,-500.0,0.00016712,2]
[350206002,1737689432738,-500.0,0.00016712,2]
[350206003,1737689432749,-500.0,0.00016712,2]
[350206004,1737689432759,-500.0,0.00016712,2]
[350206005,1737689432768,-500.0,0.00016712,2]
[350206006,1737689432778,-500.0,0.00016712,2]
[350206007,1737689432787,-719.0,0.00016712,2]
[350206008,1737689432798,-666.5,0.00016712,2]
[350206009,1737689432809,-500.0,0.00016712,2]
[350206010,1737689432819,-500.0,0.00016712,2]
[350206011,1737689432828,-1075.65,0.00016712,2]
[350206013,1737689432837,-500.0,0.00016712,2]
[350206015,1737689432846,-500.0,0.00016712,2]
[350206016,1737689432856,-500.0,0.00016712,2]
[350206017,1737689432865,-500.0,0.00016712,2]
[350206018,1737689432878,-500.0,0.00016712,2]
[350206019,1737689432888,-500.0,0.00016712,2]
[350206020,1737689432897,-500.0,0.00016712,2]
[350206021,1737689432906,-389.28,0.00016817,2]
[350206022,1737689432915,-297.73,0.00016899,2]
[350206023,1737689432924,-234.09545682,0.000169,2]
[350206024,1737689432933,-500.0,0.00016986,2]
[350206025,1737689432943,-802.74,0.00016986,2]
[350206026,1737689432952,-500.0,0.00016986,2]
[350206027,1737689432962,-646.54,0.00016986,2]
[350206028,1737689432971,-500.0,0.00016986,2]
[350206029,1737689432980,-500.0,0.00016986,2]
[350206030,1737689432989,-500.0,0.00016986,2]
[350206031,1737689432998,-500.0,0.00016986,2]
[350206032,1737689433007,-500.0,0.00016986,2]
[350206033,1737689433017,-790.11,0.00016986,2]
[350206034,1737689433027,-715.81,0.00016986,2]
[350206035,1737689433037,-500.0,0.00016986,2]
[350206036,1737689433047,-500.0,0.00016986,2]
[350206037,1737689433057,-1205.98,0.00016986,2]
[350206038,1737689433066,-568.44107463,0.00016986,2]
[350206039,1737689433076,-500.0,0.00016986,2]
[350206040,1737689433085,-500.0,0.00016986,2]
[350206041,1737689433095,-483.8,0.00016986,2]
[350206042,1737689433104,-419.42,0.00016986,2]
[350206043,1737689433113,-719.0,0.00016986,2]
[350206044,1737689433125,-666.5,0.00016986,2]
[350206045,1737689433135,-500.0,0.00016986,2]
[350206046,1737689433144,-500.0,0.00016986,2]
[350206047,1737689433153,-1075.65,0.00016986,2]
[350206048,1737689433162,-500.0,0.00016986,2]
[350206049,1737689433172,-500.0,0.00016986,2]
[350206050,1737689433181,-500.0,0.00016986,2]
[350206051,1737689433190,-500.0,0.00016986,2]
[350206052,1737689433199,-500.0,0.00016986,2]
[350206053,1737689433208,-600.0,0.00017,2]
[350206054,1737689433218,-1000.0,0.00017182,2]
[350206055,1737689433227,-500.0,0.0001726,2]
[350206056,1737689433236,-802.74,0.0001726,2]
[350206057,1737689433245,-500.0,0.0001726,2]
[350206058,1737689433254,-646.54,0.0001726,2]
[350206059,1737689433263,-500.0,0.0001726,2]
[350206060,1737689433272,-500.0,0.0001726,2]
[350206061,1737689433281,-500.0,0.0001726,2]
[350206062,1737689433290,-500.0,0.0001726,2]
[350206063,1737689433300,-500.0,0.0001726,2]
[350206064,1737689433309,-790.11,0.0001726,2]
[350206065,1737689433319,-715.81,0.0001726,2]
[350206066,1737689433328,-500.0,0.0001726,2]
[350206067,1737689433338,-500.0,0.0001726,2]
[350206068,1737689433346,-1205.98,0.0001726,2]
[350206069,1737689433356,-500.0,0.0001726,2]
[350206070,1737689433365,-500.0,0.0001726,2]
[350206071,1737689433376,-719.0,0.0001726,2]
[350206072,1737689433385,-666.5,0.0001726,2]
[350206073,1737689433394,-500.0,0.0001726,2]
[350206074,1737689433403,-500.0,0.0001726,2]
[350206075,1737689433412,-1075.65,0.0001726,2]
[350206076,1737689433421,-500.0,0.0001726,2]
[350206077,1737689433431,-500.0,0.0001726,2]
[350206078,1737689433440,-500.0,0.0001726,2]
[350206079,1737689433449,-500.0,0.0001726,2]
[350206080,1737689433458,-309.17,0.0001726,2]
[350206081,1737689433467,-3569.83,0.00017318,2]
[350206082,1737689433476,-250.0,0.00017322,2]
[350206083,1737689433487,-2041.86,0.00017356,2]
[350206084,1737689433496,-165.36,0.00017361,2]
[350206085,1737689433506,-165.41,0.00017361,30]
[350206086,1737689433695,-250.0,0.00017457,2]
[350206087,1737689433705,-462.25,0.00017524,2]
[350206088,1737689433715,-500.0,0.00017534,2]
[350206089,1737689433724,-802.74,0.00017534,2]
[350206090,1737689433736,-500.0,0.00017534,2]
[350206091,1737689433745,-646.54,0.00017534,2]
[350206092,1737689433755,-500.0,0.00017534,2]
[350206093,1737689433764,-500.0,0.00017534,2]
[350206094,1737689433775,-500.0,0.00017534,2]
[350206095,1737689433784,-500.0,0.00017534,2]
[350206096,1737689433793,-169.29,0.00017534,2]
[350206097,1737689433802,-790.11,0.00017534,2]
[350206098,1737689433812,-715.81,0.00017534,2]
[350206099,1737689433823,-500.0,0.00017534,2]
[350206100,1737689433832,-500.0,0.00017534,2]
[350206101,1737689433842,-1205.98,0.00017534,2]
[350206102,1737689433851,-500.0,0.00017534,2]
[350206103,1737689433861,-500.0,0.00017534,2]
[350206104,1737689433870,-719.0,0.00017534,2]
[350206105,1737689433883,-666.5,0.00017534,2]
[350206106,1737689433892,-450.49,0.00017534,2]
[350206107,1737689433901,-500.0,0.00017534,2]
[350206108,1737689433911,-1075.65,0.00017534,2]
[350206109,1737689433920,-500.0,0.00017534,2]
[350206110,1737689433930,-500.0,0.00017534,2]
[350206111,1737689433940,-500.0,0.00017534,2]
[350206112,1737689433950,-500.0,0.00017534,2]
[350206113,1737689433960,-675.27,0.00017602,2]
[350206114,1737689433969,-54543.06117083,0.000178,2]
[350206115,1737689433978,-508.24,0.00017808,2]
[350206116,1737689433988,-802.74,0.00017808,2]
[350206117,1737689433997,-500.0,0.00017808,2]
[350206118,1737689434006,-646.54,0.00017808,2]
[350206119,1737689434016,-500.0,0.00017808,2]
[350206120,1737689434025,-211.12,0.00017808,2]
[350206121,1737689434034,-500.0,0.00017808,2]
[350206122,1737689434044,-500.0,0.00017808,2]
[350206123,1737689434053,-790.11,0.00017808,2]
[350206124,1737689434063,-715.81,0.00017808,2]
[350206125,1737689434072,-500.0,0.00017808,2]
[350206126,1737689434081,-500.0,0.00017808,2]
[350206127,1737689434091,-1205.98,0.00017808,2]
[350206128,1737689434100,-238.62,0.00017808,2]
[350206129,1737689434110,-500.0,0.00017808,2]
[350206130,1737689434119,-719.0,0.00017808,2]
[350206131,1737689434137,-666.5,0.00017808,2]
[350206132,1737689434146,-500.0,0.00017808,2]
[350206133,1737689434156,-1075.65,0.00017808,2]
[350206134,1737689434165,-500.0,0.00017808,2]
[350206135,1737689434174,-376.3,0.00017808,2]
[350206136,1737689434183,-211.63,0.00017808,2]
[350206137,1737689434192,-500.0,0.00017808,2]
[350206138,1737689434201,-438.48,0.00017825,2]
[350206139,1737689434211,-773.52,0.00017825,2]
[350206140,1737689434220,-438.48,0.00017825,2]
[350206141,1737689434230,-773.11,0.00017825,2]
[350206142,1737689434239,-1119.3988,0.00017826,2]
[350206143,1737689434248,-360.20503813,0.000179,2]
[350206144,1737689434259,-500.0,0.00017926,2]
[350206145,1737689434268,-226.60006208,0.00017926,2]
[350206146,1737689434278,-500.0,0.00017926,2]
[350206147,1737689434287,-500.0,0.00017926,2]
[350206148,1737689434297,-500.0,0.00017926,2]
[350206149,1737689434306,-500.0,0.00017926,2]
[350206150,1737689434316,-500.0,0.00017926,2]
[350206151,1737689434325,-500.0,0.00017926,2]
[350206152,1737689434335,-500.0,0.00017926,2]
[350206153,1737689434344,-500.0,0.00017926,2]
[350206154,1737689434354,-500.0,0.00017926,2]
[350206155,1737689434363,-500.0,0.00017926,2]
[350206156,1737689434376,-500.0,0.00017926,2]
[350206157,1737689434386,-500.0,0.00017926,2]
[350206158,1737689434396,-500.0,0.00017926,2]
[350206159,1737689434405,-500.0,0.00017926,2]
[350206160,1737689434414,-500.0,0.00017926,2]
[350206161,1737689434424,-500.0,0.00017926,2]